fUST/lending_fUST_20250630
["ID","MTS","AMOUNT","RATE_DAILY","PERIOD"]
[368609689,1751235040062,-460.0,0.00018325,2]
[368609690,1751235040071,-460.0,0.00018325,2]
[368609691,1751235040080,-460.0,0.00018325,2]
[368609692,1751235040091,-460.0,0.00018325,2]
[368609693,1751235040100,-460.0,0.00018325,2]
[368609694,1751235040110,-460.0,0.00018325,2]
[368609696,1751235040121,-460.0,0.00018325,2]
[368609697,1751235040130,-460.0,0.00018325,2]
[368609698,1751235040140,-268.19606579,0.00018326,2]
[368609699,1751235040150,-460.0,0.00018326,2]
[368609700,1751235040161,-460.0,0.00018326,2]
[368609701,1751235040170,-359.18,0.00018326,2]
[368609703,1751235040180,-460.0,0.00018326,2]
[368609704,1751235040190,-460.0,0.00018326,2]
[368609705,1751235040199,-460.0,0.00018327,2]
[368609706,1751235040210,-460.0,0.00018327,2]
[368609707,1751235040219,-460.0,0.00018327,2]
[368609708,1751235040229,-460.0,0.00018327,2]
[368609709,1751235040237,-460.0,0.00018327,2]
[368609710,1751235040247,-460.0,0.00018596,2]
[368609711,1751235040256,-460.0,0.00018596,2]
[368609712,1751235040265,-460.0,0.00018596,2]
[368609713,1751235040274,-1457.24,0.00018596,2]
[368609714,1751235040284,-460.0,0.00018597,2]
[368609715,1751235040293,-460.0,0.00018597,2]
[368609716,1751235040302,-460.0,0.00018597,2]
[368609717,1751235040311,-460.0,0.00018597,2]
[368609718,1751235040322,-460.0,0.00018597,2]
[368609719,1751235040331,-460.0,0.00018597,2]
[368609720,1751235040340,-460.0,0.00018597,2]
[368609722,1751235040349,-460.0,0.00018597,2]
[368609723,1751235040358,-367.97271413,0.00018597,2]
[368609724,1751235040368,-460.0,0.00018597,2]
[368609725,1751235040377,-460.0,0.00018597,2]
[368609726,1751235040386,-460.0,0.00018597,2]
[368609727,1751235040397,-441.80511731,0.00018597,2]
[368609728,1751235040406,-460.0,0.00018597,2]
[368609729,1751235040416,-460.0,0.00018597,2]
[368609730,1751235040426,-460.0,0.00018597,2]
[368609731,1751235040435,-460.0,0.00018597,2]
[368609732,1751235040443,-460.0,0.00018597,2]
[368609733,1751235040453,-2032.3,0.00018597,2]
[368609735,1751235040462,-460.0,0.00018597,2]
[368609737,1751235040471,-460.0,0.00018597,2]
[368609739,1751235040480,-1565.73,0.00018597,2]
[368609741,1751235040489,-460.0,0.00018597,2]
[368609743,1751235040498,-553.15,0.00018597,2]
[368609745,1751235040507,-2403.57551749,0.00018597,2]
[368609747,1751235040520,-46.62448251,0.00018597,2]
[368609749,1751235040530,-1188.68,0.00018597,2]
[368609751,1751235040540,-460.0,0.00018597,2]
[368609753,1751235040549,-460.0,0.00018597,2]
[368609755,1751235040558,-460.76,0.00018597,2]
[368609757,1751235040567,-460.0,0.00018597,2]
[368609759,1751235040576,-460.0,0.00018597,2]
[368609761,1751235040585,-460.0,0.00018597,2]
[368609763,1751235040594,-93.18322277,0.00018597,2]
[368609765,1751235040605,-366.81677723,0.00018597,2]
[368609767,1751235040615,-460.0,0.00018597,2]
[368609769,1751235040624,-460.0,0.00018597,2]
[368609771,1751235040633,-612.49,0.00018597,2]
[368609773,1751235040643,-460.0,0.00018597,2]
[368609775,1751235040652,-2357.05,0.00018597,2]
[368609777,1751235040661,-460.0,0.00018597,2]
[368609779,1751235040670,-2202.17,0.00018597,2]
[368609781,1751235040679,-656.98,0.00018597,2]
[368609783,1751235040689,-2553.27,0.00018597,2]
[368609785,1751235040698,-460.0,0.00018597,2]
[368609787,1751235040707,-460.0,0.00018597,2]
[368609789,1751235040717,-1017.95,0.00018597,2]
[368609791,1751235040726,-1117.64,0.00018597,2]
[368609793,1751235040735,-460.0,0.00018597,2]
[368609795,1751235040744,-827.33,0.00018597,2]
[368609797,1751235040753,-494.35,0.00018597,2]
[368609799,1751235040762,-460.0,0.00018597,2]
[368609801,1751235040771,-460.0,0.00018597,2]
[368609803,1751235040780,-1073.37,0.00018597,2]
[368609805,1751235040790,-460.0,0.00018597,2]
[368609807,1751235040803,-460.0,0.00018597,2]
[368609809,1751235040813,-763.09,0.00018597,2]
[368609811,1751235040822,-460.0,0.00018597,2]
[368609813,1751235040833,-460.0,0.00018598,2]
[368609815,1751235040842,-460.0,0.00018598,2]
[368609817,1751235040852,-460.0,0.00018598,2]
[368609819,1751235040861,-460.0,0.00018598,2]
[368609821,1751235040874,-467.07,0.00018598,2]
[368609823,1751235040883,-457.92956223,0.00018598,2]
[368609825,1751235040892,-609.95,0.00018598,2]
[368609827,1751235040901,-603.18,0.00018598,2]
[368609829,1751235040911,-460.0,0.00018598,2]
[368609831,1751235040920,-460.0,0.00018598,2]
[368609833,1751235040929,-489.51,0.00018598,2]
[368609835,1751235040938,-460.0,0.00018598,2]
[368609837,1751235040947,-460.0,0.00018598,2]
[368609838,1751235040957,-460.0,0.00018598,2]
[368609839,1751235040966,-460.0,0.00018598,2]
[368609840,1751235040976,-460.0,0.00018598,2]
[368609841,1751235040985,-460.0,0.00018598,2]
[368609842,1751235040995,-460.0,0.00018598,2]
[368609843,1751235041004,-2884.44,0.00018598,2]
[368609844,1751235041013,-460.0,0.00018598,2]
[368609845,1751235041023,-950.73,0.00018598,2]
[368609846,1751235041032,-460.0,0.00018598,2]
[368609847,1751235041041,-460.0,0.00018598,2]
[368609848,1751235041051,-462.1,0.00018598,2]
[368609849,1751235041061,-610.49,0.00018598,2]
[368609850,1751235041070,-954.77,0.00018598,2]
[368609851,1751235041079,-503.3,0.00018599,2]
[368609852,1751235041088,-453.38,0.00018599,2]
[368609853,1751235041098,-460.0,0.00018599,2]
[368609854,1751235041107,-460.0,0.00018599,2]
[368609855,1751235041117,-460.1,0.00018599,2]
[368609856,1751235041128,-460.0,0.00018599,2]
[368609857,1751235041138,-460.0,0.000186,2]
[368609858,1751235041147,-460.0,0.000186,2]
[368609859,1751235041156,-1198.0,0.0001878,2]
[368609860,1751235041166,-153.0,0.000188,2]
[368609861,1751235041175,-153.0,0.000188,2]
[368609862,1751235041185,-153.0,0.000188,2]
[368609863,1751235041194,-1198.0,0.00018818,2]
[368609864,1751235041203,-2824.14482726,0.00018834,2]
[368609865,1751235041212,-1182.0,0.00018837,2]
[368609866,1751235041222,-460.0,0.0001887,2]
[368609867,1751235041231,-460.0,0.0001887,2]
[368609868,1751235041240,-1457.24,0.0001887,2]
[368609869,1751235041250,-460.0,0.00018871,2]
[368609870,1751235041259,-578.15430738,0.00018871,2]
[368609871,1751235041268,-460.0,0.00018871,2]
[368609872,1751235041278,-526.55287556,0.00018871,2]
[368609873,1751235041287,-2032.3,0.00018871,2]
[368609875,1751235041296,-460.0,0.00018871,2]
[368609877,1751235041306,-375.2314502,0.00018871,2]
[368609879,1751235041315,-1565.73,0.00018871,2]
[368609881,1751235041324,-460.0,0.00018871,2]
[368609883,1751235041333,-2450.2,0.00018871,2]
[368609885,1751235041342,-1188.68,0.00018871,2]
[368609887,1751235041351,-460.0,0.00018871,2]
[368609889,1751235041360,-460.0,0.00018871,2]
[368609891,1751235041370,-460.76,0.00018871,2]
[368609893,1751235041379,-317.83421492,0.00018871,2]
[368609895,1751235041388,-460.0,0.00018871,2]
[368609897,1751235041397,-460.0,0.00018871,2]
[368609899,1751235041406,-460.0,0.00018871,2]
[368609901,1751235041415,-460.0,0.00018871,2]
[368609903,1751235041424,-460.0,0.00018871,2]
[368609905,1751235041433,-612.49,0.00018871,2]
[368609907,1751235041442,-2357.05,0.00018871,2]
[368609909,1751235041451,-460.0,0.00018871,2]
[368609911,1751235041461,-2202.17,0.00018871,2]
[368609912,1751235041471,-656.98,0.00018871,2]
[368609914,1751235041480,-2553.27,0.00018871,2]
[368609916,1751235041489,-460.0,0.00018871,2]
[368609918,1751235041499,-460.0,0.00018871,2]
[368609919,1751235041508,-1017.95,0.00018871,2]
[368609921,1751235041517,-1117.64,0.00018871,2]
[368609923,1751235041526,-222.85,0.00018871,2]
[368609925,1751235041535,-827.33,0.00018871,2]
[368609927,1751235041544,-460.0,0.00018871,2]
[368609929,1751235041553,-460.0,0.00018871,2]
[368609931,1751235041563,-1073.37,0.00018871,2]
[368609933,1751235041572,-460.0,0.00018871,2]
[368609935,1751235041581,-460.0,0.00018871,2]
[368609937,1751235041590,-763.09,0.00018871,2]
[368609939,1751235041599,-460.0,0.00018871,2]
[368609941,1751235041609,-460.0,0.00018872,2]
[368609943,1751235041618,-460.0,0.00018872,2]
[368609945,1751235041627,-460.0,0.00018872,2]
[368609947,1751235041636,-467.07,0.00018872,2]
[368609949,1751235041646,-609.95,0.00018872,2]
[368609951,1751235041655,-603.18,0.00018872,2]
[368609953,1751235041665,-460.0,0.00018872,2]
[368609955,1751235041674,-460.0,0.00018872,2]
[368609957,1751235041683,-489.51,0.00018872,2]
[368609959,1751235041692,-460.0,0.00018872,2]
[368609961,1751235041703,-460.0,0.00018872,2]
[368609963,1751235041712,-460.0,0.00018872,2]
[368609965,1751235041721,-460.0,0.00018872,2]
[368609966,1751235041730,-460.0,0.00018872,2]
[368609968,1751235041739,-460.0,0.00018872,2]
[368609970,1751235041749,-460.0,0.00018872,2]
[368609972,1751235041758,-2884.44,0.00018872,2]
[368609974,1751235041767,-460.0,0.00018872,2]
[368609976,1751235041778,-950.73,0.00018872,2]
[368609978,1751235041787,-460.0,0.00018872,2]
[368609980,1751235041800,-460.0,0.00018872,2]
[368609982,1751235041810,-462.1,0.00018872,2]
[368609984,1751235041819,-610.49,0.00018872,2]
[368609986,1751235041828,-954.77,0.00018872,2]
[368609988,1751235041838,-503.3,0.00018873,2]
[368609990,1751235041847,-460.0,0.00018873,2]
[368609992,1751235041857,-460.0,0.00018873,2]
[368609994,1751235041866,-460.0,0.00018873,2]
[368609996,1751235041876,-460.0,0.00018874,2]
[368609998,1751235041886,-624.67088142,0.00018877,2]
[368610000,1751235041895,-153.0,0.000189,2]
[368610001,1751235041904,-299.79706869,0.000189,2]
[368610003,1751235041913,-306.0,0.000189,2]
[368610005,1751235041922,-159.291355,0.000189,2]
[368610007,1751235041933,-575.3123006,0.000189,2]
[368610009,1751235041942,-1998.95653616,0.00019005,2]
[368610011,1751235041952,-20793.3421539,0.00019078,2]
[368610013,1751235041961,-1198.0,0.00019105,2]
[368610015,1751235041971,-460.0,0.00019144,2]
[368610017,1751235041981,-460.0,0.00019144,2]
[368610019,1751235041990,-1457.24,0.00019144,2]
[368610021,1751235041999,-460.0,0.00019145,2]
[368610023,1751235042009,-2032.3,0.00019145,2]
[368610025,1751235042018,-460.0,0.00019145,2]
[368610027,1751235042028,-1565.73,0.00019145,2]
[368610029,1751235042038,-460.0,0.00019145,2]
[368610031,1751235042047,-2450.2,0.00019145,2]
[368610033,1751235042056,-1188.68,0.00019145,2]
[368610035,1751235042066,-460.0,0.00019145,2]
[368610037,1751235042075,-460.76,0.00019145,2]
[368610039,1751235042085,-536.7751742,0.00019145,2]
[368610041,1751235042093,-460.0,0.00019145,2]
[368610043,1751235042102,-460.0,0.00019145,2]
[368610045,1751235042112,-460.0,0.00019145,2]
[368610047,1751235042122,-460.0,0.00019145,2]
[368610049,1751235042131,-612.49,0.00019145,2]
[368610050,1751235042141,-2357.05,0.00019145,2]
[368610051,1751235042150,-460.0,0.00019145,2]
[368610052,1751235042160,-2202.17,0.00019145,2]
[368610053,1751235042169,-656.98,0.00019145,2]
[368610054,1751235042179,-2553.27,0.00019145,2]
[368610055,1751235042188,-460.0,0.00019145,2]
[368610056,1751235042198,-460.0,0.00019145,2]
[368610057,1751235042207,-1017.95,0.00019145,2]
[368610058,1751235042216,-1117.64,0.00019145,2]
[368610059,1751235042226,-827.33,0.00019145,2]
[368610060,1751235042236,-460.0,0.00019145,2]
[368610061,1751235042245,-460.0,0.00019145,2]
[368610062,1751235042254,-1073.37,0.00019145,2]
[368610063,1751235042264,-460.0,0.00019145,2]
[368610064,1751235042273,-460.0,0.00019145,2]
[368610065,1751235042283,-763.09,0.00019145,2]
[368610066,1751235042292,-460.0,0.00019145,2]
[368610067,1751235042302,-460.0,0.00019146,2]
[368610068,1751235042311,-460.0,0.00019146,2]
[368610069,1751235042321,-460.0,0.00019146,2]
[368610070,1751235042331,-467.07,0.00019146,2]
[368610071,1751235042340,-609.95,0.00019146,2]
[368610072,1751235042349,-603.18,0.00019146,2]
[368610073,1751235042359,-460.0,0.00019146,2]
[368610074,1751235042368,-489.51,0.00019146,2]
[368610075,1751235042378,-460.0,0.00019146,2]
[368610076,1751235042387,-294.31815149,0.00019146,2]
[368610077,1751235042397,-460.0,0.00019146,2]
[368610078,1751235042406,-460.0,0.00019146,2]
[368610079,1751235042415,-460.0,0.00019146,2]
[368610080,1751235042425,-460.0,0.00019146,2]
[368610081,1751235042434,-2884.44,0.00019146,2]
[368610082,1751235042443,-460.0,0.00019146,2]
[368610083,1751235042453,-950.73,0.00019146,2]
[368610084,1751235042462,-460.0,0.00019146,2]
[368610085,1751235042471,-460.0,0.00019146,2]
[368610086,1751235042481,-462.1,0.00019146,2]
[368610087,1751235042490,-610.49,0.00019146,2]
[368610088,1751235042499,-954.77,0.00019146,2]
[368610089,1751235042508,-503.3,0.00019147,2]
[368610090,1751235042517,-460.0,0.00019147,2]
[368610091,1751235042527,-460.0,0.00019147,2]
[368610092,1751235042536,-320.11091717,0.00019147,2]
[368610093,1751235042545,-460.0,0.00019148,2]
[368610094,1751235042554,-2749.10565265,0.00019148,2]
[368610095,1751235042564,-500.0,0.00019164,2]
[368610096,1751235042574,-500.0,0.00019175,2]
[368610097,1751235042584,-460.0,0.00019177,2]
[368610099,1751235042717,-460.0,0.00019177,2]
[368610100,1751235042727,-574.80836478,0.00019177,2]
[368610101,1751235042737,-460.0,0.00019177,2]
[368610102,1751235042746,-1562.25,0.00019177,2]
[368610103,1751235042755,-460.0,0.00019177,2]
[368610104,1751235042765,-460.0,0.00019177,2]
[368610105,1751235042774,-1232.26,0.00019177,2]
[368610106,1751235042784,-3609.43,0.00019177,2]
[368610107,1751235042797,-1161.31,0.00019177,2]
[368610108,1751235042807,-628.555958,0.00019178,2]
[368610109,1751235042816,-55349.0902884,0.00019178,2]
[368610110,1751235042826,-158.7575359,0.00019178,2]
[368610111,1751235042836,-573.5117524,0.00019178,2]
[368610112,1751235042846,-775.0,0.00019186,2]
[368610113,1751235042857,-230.0,0.00019186,2]
[368610114,1751235042868,-344.8429154,0.00019186,2]
[368610115,1751235042879,-500.0,0.00019186,2]
[368610116,1751235042889,-500.0,0.00019186,2]
[368610117,1751235042899,-500.0,0.00019186,2]
[368610118,1751235042908,-540.73312332,0.00019186,2]
[368610119,1751235042918,-500.0,0.00019186,2]
[368610120,1751235042927,-500.0,0.00019186,2]
[368610123,1751235042936,-500.0,0.00019186,2]
[368610124,1751235042945,-775.0,0.00019198,2]
[368610125,1751235042955,-575.3123006,0.00019205,2]
[368610126,1751235042964,-159.291355,0.00019205,2]
[368610127,1751235042974,-500.0,0.00019225,2]
[368610128,1751235042983,-500.0,0.00019225,2]
[368610129,1751235042992,-500.0,0.00019225,2]
[368610130,1751235043002,-500.68364037,0.00019242,2]
[368610131,1751235043011,-500.0,0.00019245,2]
[368610132,1751235043021,-500.0,0.00019245,2]
[368610133,1751235043030,-500.0,0.00019245,2]
[368610134,1751235043039,-500.0,0.00019245,2]
[368610135,1751235043049,-502.29311935,0.00019245,2]
[368610136,1751235043058,-500.0,0.00019245,2]
[368610137,1751235043067,-500.0,0.00019245,2]
[368610138,1751235043076,-500.0,0.00019245,2]
[368610139,1751235043086,-500.0,0.00019245,2]
[368610140,1751235043095,-500.0,0.00019245,2]
[368610141,1751235043104,-500.0,0.00019245,2]
[368610142,1751235043113,-500.0,0.00019245,2]
[368610143,1751235043124,-500.84850324,0.00019245,2]
[368610144,1751235043133,-500.0,0.00019245,2]
[368610145,1751235043143,-500.0,0.00019245,2]
[368610146,1751235043152,-500.0,0.00019278,2]
[368610147,1751235043162,-500.0,0.00019278,2]
[368610148,1751235043171,-500.0,0.00019278,2]
[368610149,1751235043181,-500.0,0.00019304,2]
[368610150,1751235043190,-500.0,0.00019304,2]
[368610151,1751235043200,-500.0,0.00019304,2]
[368610152,1751235043209,-100000.0,0.00019329,2]
[368610153,1751235043218,-500.0,0.00019373,2]
[368610154,1751235043227,-500.0,0.00019403,2]
[368610155,1751235043237,-500.0,0.00019403,2]
[368610156,1751235043246,-460.0,0.00019418,2]
[368610157,1751235043254,-460.0,0.00019418,2]
[368610158,1751235043263,-1457.24,0.00019418,2]
[368610159,1751235043273,-460.0,0.00019419,2]
[368610160,1751235043282,-2032.3,0.00019419,2]
[368610161,1751235043291,-609.55669004,0.00019419,2]
[368610162,1751235043300,-1565.73,0.00019419,2]
[368610163,1751235043310,-367.28105927,0.00019419,2]
[368610164,1751235043319,-2450.2,0.00019419,2]
[368610165,1751235043328,-1188.68,0.00019419,2]
[368610166,1751235043337,-460.0,0.00019419,2]
[368610167,1751235043346,-460.76,0.00019419,2]
[368610168,1751235043355,-460.0,0.00019419,2]
[368610169,1751235043365,-286.62,0.00019419,2]
[368610170,1751235043374,-460.0,0.00019419,2]
[368610171,1751235043383,-460.0,0.00019419,2]
[368610172,1751235043392,-151.0,0.00019419,2]
[368610173,1751235043401,-612.49,0.00019419,2]
[368610174,1751235043411,-2357.05,0.00019419,2]
[368610175,1751235043420,-460.0,0.00019419,2]
[368610176,1751235043429,-2202.17,0.00019419,2]
[368610177,1751235043438,-656.98,0.00019419,2]
[368610179,1751235043447,-2553.27,0.00019419,2]
[368610180,1751235043456,-460.0,0.00019419,2]
[368610181,1751235043465,-460.0,0.00019419,2]
[368610182,1751235043474,-1017.95,0.00019419,2]
[368610183,1751235043484,-1117.64,0.00019419,2]
[368610184,1751235043492,-151.0,0.00019419,2]
[368610185,1751235043502,-151.0,0.00019419,2]
[368610186,1751235043511,-827.33,0.00019419,2]
[368610187,1751235043521,-460.0,0.00019419,2]
[368610188,1751235043530,-460.0,0.00019419,2]
[368610189,1751235043539,-1073.37,0.00019419,2]
[368610190,1751235043549,-551.76,0.00019419,2]
[368610191,1751235043558,-316.23,0.00019419,2]
[368610192,1751235043567,-763.09,0.00019419,2]
[368610193,1751235043576,-460.0,0.00019419,2]
[368610194,1751235043586,-460.0,0.0001942,2]
[368610195,1751235043595,-460.0,0.0001942,2]
[368610196,1751235043604,-467.07,0.0001942,2]
[368610197,1751235043613,-609.95,0.0001942,2]
[368610198,1751235043623,-603.18,0.0001942,2]
[368610199,1751235043632,-460.0,0.0001942,2]
[368610200,1751235043642,-489.51,0.0001942,2]
[368610201,1751235043651,-460.0,0.0001942,2]
[368610202,1751235043660,-460.0,0.0001942,2]
[368610203,1751235043670,-460.0,0.0001942,2]
[368610204,1751235043679,-460.0,0.0001942,2]
[368610205,1751235043688,-460.0,0.0001942,2]
[368610206,1751235043698,-2884.44,0.0001942,2]
[368610207,1751235043707,-460.0,0.0001942,2]
[368610208,1751235043716,-950.73,0.0001942,2]
[368610209,1751235043725,-460.0,0.0001942,2]
[368610210,1751235043736,-462.1,0.0001942,2]
[368610211,1751235043745,-610.49,0.0001942,2]
[368610212,1751235043755,-954.77,0.0001942,2]
[368610213,1751235043764,-503.3,0.00019421,2]
[368610214,1751235043774,-460.0,0.00019421,2]
[368610215,1751235043783,-460.0,0.00019422,2]
[368610216,1751235043797,-460.0,0.00019451,2]
[368610217,1751235043806,-460.0,0.00019451,2]
[368610218,1751235043816,-1562.25,0.00019451,2]
[368610219,1751235043825,-460.0,0.00019451,2]
[368610220,1751235043836,-1232.26,0.00019451,2]
[368610221,1751235043845,-3609.43,0.00019451,2]
[368610222,1751235043854,-1161.31,0.00019451,2]
[368610223,1751235043863,-160.0,0.00019474,2]
[368610224,1751235043875,-160.0,0.00019475,2]
[368610225,1751235043883,-214.97967293,0.00019475,2]
[368610226,1751235043892,-160.0,0.00019475,2]
[368610227,1751235043902,-837.1293463,0.00019475,2]
[368610228,1751235043911,-160.0,0.00019475,2]
[368610229,1751235043920,-160.0,0.00019475,2]
[368610230,1751235043930,-160.0,0.00019475,2]
[368610231,1751235043940,-160.0,0.00019475,2]
[368610232,1751235043949,-230.30207649,0.00019475,2]
[368610233,1751235043959,-847.31290578,0.00019475,2]
[368610234,1751235043968,-213.82031328,0.00019475,2]
[368610235,1751235043978,-12567.05932091,0.00019475,2]
[368610236,1751235043987,-160.0,0.00019475,2]
[368610237,1751235043997,-500.0,0.000195,2]
[368610238,1751235044006,-775.0,0.00019517,2]
[368610239,1751235044015,-1998.95653615,0.00019524,2]
[368610240,1751235044025,-624.67088142,0.00019531,2]
[368610241,1751235044034,-159.0320105,0.00019534,2]
[368610242,1751235044044,-460.0,0.00019692,2]
[368610243,1751235044053,-460.0,0.00019692,2]
[368610244,1751235044062,-1457.24,0.00019692,2]
[368610245,1751235044071,-2032.3,0.00019693,2]
[368610246,1751235044081,-1565.73,0.00019693,2]
[368610247,1751235044090,-2450.2,0.00019693,2]
[368610248,1751235044099,-1188.68,0.00019693,2]
[368610249,1751235044108,-460.0,0.00019693,2]
[368610250,1751235044117,-460.76,0.00019693,2]
[368610251,1751235044127,-460.0,0.00019693,2]
[368610252,1751235044137,-460.0,0.00019693,2]
[368610253,1751235044146,-460.0,0.00019693,2]
[368610254,1751235044155,-612.49,0.00019693,2]
[368610255,1751235044164,-2357.05,0.00019693,2]
[368610256,1751235044174,-460.0,0.00019693,2]
[368610257,1751235044183,-2202.17,0.00019693,2]
[368610258,1751235044192,-656.98,0.00019693,2]
[368610259,1751235044202,-2553.27,0.00019693,2]
[368610260,1751235044211,-460.0,0.00019693,2]
[368610261,1751235044220,-460.0,0.00019693,2]
[368610262,1751235044229,-1017.95,0.00019693,2]
[368610263,1751235044239,-1117.64,0.00019693,2]
[368610264,1751235044247,-827.33,0.00019693,2]
[368610265,1751235044258,-460.0,0.00019693,2]
[368610266,1751235044267,-460.0,0.00019693,2]
[368610267,1751235044277,-1073.37,0.00019693,2]
[368610268,1751235044287,-763.09,0.00019693,2]
[368610269,1751235044296,-479.28,0.00019693,2]
[368610270,1751235044305,-151.0,0.00019694,2]
[368610271,1751235044315,-460.0,0.00019694,2]
[368610272,1751235044324,-460.0,0.00019694,2]
[368610273,1751235044333,-467.07,0.00019694,2]
[368610274,1751235044342,-609.95,0.00019694,2]
[368610275,1751235044351,-603.18,0.00019694,2]
[368610276,1751235044360,-460.0,0.00019694,2]
[368610277,1751235044369,-489.51,0.00019694,2]
[368610278,1751235044378,-460.0,0.00019694,2]
[368610279,1751235044388,-192.47434307,0.00019694,2]
[368610280,1751235044397,-460.0,0.00019694,2]
[368610281,1751235044406,-460.0,0.00019694,2]
[368610282,1751235044416,-2884.44,0.00019694,2]
[368610283,1751235044426,-460.0,0.00019694,2]
[368610284,1751235044435,-950.73,0.00019694,2]
[368610285,1751235044445,-460.0,0.00019694,2]
[368610286,1751235044454,-462.1,0.00019694,2]
[368610287,1751235044463,-610.49,0.00019694,2]
[368610288,1751235044472,-954.77,0.00019694,2]
[368610289,1751235044481,-503.3,0.00019695,2]
[368610290,1751235044490,-208.958565,0.00019695,2]
[368610291,1751235044500,-460.0,0.00019695,2]
[368610292,1751235044509,-460.0,0.00019696,2]
[368610293,1751235044518,-151.0,0.00019699,2]
[368610294,1751235044528,-151.0,0.00019699,2]
[368610295,1751235044538,-185.748531,0.00019699,2]
[368610296,1751235044547,-185.748531,0.00019699,2]
[368610297,1751235044556,-151.0,0.00019699,2]
[368610298,1751235044565,-205.018345,0.00019699,2]
[368610299,1751235044575,-151.0,0.00019699,2]
[368610300,1751235044584,-159.748146,0.00019699,2]
[368610301,1751235044593,-151.0,0.00019699,2]
[368610302,1751235044602,-192.117555,0.00019699,2]
[368610303,1751235044611,-192.117555,0.00019699,2]
[368610304,1751235044620,-456.652963,0.00019699,2]
[368610305,1751235044632,-456.652963,0.00019699,2]
[368610306,1751235044642,-151.0,0.00019699,2]
[368610307,1751235044651,-274.97182,0.00019699,2]
[368610308,1751235044660,-255.618464,0.00019699,2]
[368610309,1751235044669,-255.618464,0.00019699,2]
[368610310,1751235044679,-207.4,0.00019699,2]
[368610311,1751235044688,-5000.0,0.00019699,2]
[368610312,1751235044697,-500.0,0.00019699,2]
[368610313,1751235044707,-500.0,0.00019699,2]
[368610314,1751235044716,-500.0,0.00019699,2]
[368610315,1751235044726,-690.642,0.00019699,2]
[368610316,1751235044735,-500.0,0.00019699,2]
[368610317,1751235044745,-500.0,0.00019699,2]
[368610318,1751235044754,-3906.52055875,0.00019699,2]
[368610319,1751235044764,-500.0,0.00019699,2]
[368610320,1751235044773,-500.0,0.00019699,2]
[368610321,1751235044784,-500.0,0.00019699,2]
[368610322,1751235044794,-500.0,0.00019699,2]
[368610323,1751235044805,-500.0,0.00019699,2]
[368610324,1751235044814,-500.0,0.00019699,2]
[368610325,1751235044824,-151.0,0.00019699,2]
[368610326,1751235044834,-500.0,0.00019699,2]
[368610327,1751235044845,-500.0,0.00019699,2]
[368610328,1751235044854,-151.0,0.00019699,2]
[368610329,1751235044864,-563.32945425,0.00019699,2]
[368610330,1751235044877,-500.0,0.00019699,2]
[368610331,1751235044887,-291.5243871,0.00019699,2]
[368610332,1751235044896,-500.0,0.00019699,2]
[368610333,1751235044906,-500.0,0.00019699,2]